fUSD/lending_fUSD_20240109
["ID","MTS","AMOUNT","RATE_DAILY","PERIOD"]
[310912432,1704814352076,-680.5,0.00041671,30]
[310912433,1704814352086,-500.0,0.00041671,30]
[310912434,1704814352096,-634.38,0.00041671,30]
[310912435,1704814352105,-2700.24,0.00041671,30]
[310912436,1704814352113,-500.0,0.00041671,30]
[310912437,1704814352122,-1356.37,0.00041671,30]
[310912438,1704814352132,-500.0,0.00041671,30]
[310912439,1704814352141,-500.0,0.00041671,30]
[310912440,1704814352150,-500.0,0.00041671,30]
[310912441,1704814352161,-651.64,0.00041671,30]
[310912442,1704814352170,-500.0,0.00041671,30]
[310912443,1704814352180,-500.0,0.00041671,30]
[310912444,1704814352189,-500.0,0.00041671,30]
[310912445,1704814352200,-952.35,0.00041671,30]
[310912446,1704814352209,-500.0,0.00041671,30]
[310912447,1704814352219,-500.0,0.00041671,30]
[310912448,1704814352227,-1810.23,0.00041671,30]
[310912449,1704814352237,-500.0,0.00041671,30]
[310912450,1704814352247,-587.58,0.00041671,30]
[310912451,1704814352257,-625.64,0.00041671,30]
[310912452,1704814352266,-676.46,0.00041671,30]
[310912453,1704814352276,-500.0,0.00041671,30]
[310912454,1704814352285,-500.0,0.00041671,30]
[310912455,1704814352295,-1006.7,0.00041671,30]
[310912456,1704814352305,-500.0,0.00041671,30]
[310912457,1704814352314,-1037.96,0.00041671,30]
[310912458,1704814352324,-1236.35,0.00041671,30]
[310912459,1704814352334,-500.0,0.00041671,30]
[310912460,1704814352343,-1919.15,0.00041671,30]
[310912461,1704814352354,-505.19970657,0.00041671,30]
[310912462,1704814352363,-500.0,0.00041671,30]
[310912463,1704814352373,-1578.69,0.00041671,30]
[310912464,1704814352382,-500.0,0.00041671,30]
[310912465,1704814352391,-1865.73,0.00041671,30]
[310912466,1704814352401,-500.0,0.00041671,30]
[310912467,1704814352411,-1362.93,0.00041671,30]
[310912468,1704814352421,-1537.84,0.00041671,30]
[310912469,1704814352430,-2456.66,0.00041671,30]
[310912470,1704814352440,-500.0,0.00041671,30]
[310912471,1704814352449,-500.0,0.00041671,30]
[310912472,1704814352458,-589.31,0.00041671,30]
[310912473,1704814352467,-500.0,0.00041671,30]
[310912474,1704814352478,-1710.93,0.00041671,30]
[310912475,1704814352488,-788.83,0.00041671,30]
[310912476,1704814352497,-500.0,0.00041671,30]
[310912477,1704814352507,-2756.46,0.00041671,30]
[310912478,1704814352517,-2705.23,0.00041671,30]
[310912479,1704814352526,-2588.77,0.00041671,30]
[310912480,1704814352535,-946.47,0.00041671,30]
[310912481,1704814352544,-500.0,0.00041671,30]
[310912482,1704814352553,-246.27444609,0.00041671,30]
[310912483,1704814352562,-500.0,0.00041671,30]
[310912484,1704814352572,-500.0,0.00041671,30]
[310912485,1704814352582,-825.0,0.00041671,30]
[310912486,1704814352591,-500.0,0.00041671,30]
[310912487,1704814352601,-500.0,0.00041671,30]
[310912488,1704814352611,-821.89,0.00041671,30]
[310912489,1704814352620,-1714.7,0.00041671,30]
[310912490,1704814352629,-987.47,0.00041671,30]
[310912491,1704814352638,-12516.53,0.00041671,30]
[310912492,1704814352647,-2523.55,0.00041671,30]
[310912493,1704814352656,-500.0,0.00041671,30]
[310912494,1704814352665,-1027.68,0.00041671,30]
[310912495,1704814352674,-1217.97,0.00041671,30]
[310912496,1704814352683,-1474.62,0.00041671,30]
[310912497,1704814352693,-500.0,0.00041671,30]
[310912498,1704814352702,-500.0,0.00041671,30]
[310912499,1704814352712,-1454.57,0.00041671,30]
[310912500,1704814352722,-525.68061154,0.00041671,5]
[310912501,1704814352731,-1048.97,0.00041671,30]
[310912502,1704814352740,-2127.96,0.00041671,30]
[310912503,1704814352749,-500.0,0.00041671,30]
[310912504,1704814352759,-1299.93,0.00041671,30]
[310912505,1704814352768,-500.0,0.00041671,30]
[310912506,1704814352778,-2596.84,0.00041671,30]
[310912507,1704814352788,-500.0,0.00041671,30]
[310912508,1704814352799,-1950.17,0.00041671,30]
[310912509,1704814352810,-725.04,0.00041671,30]
[310912510,1704814352822,-2106.17,0.00041671,30]
[310912511,1704814352833,-522.78489238,0.00041671,30]
[310912512,1704814352844,-794.41,0.00041671,30]
[310912513,1704814352853,-3285.45,0.00041671,30]
[310912514,1704814352863,-1542.09,0.00041671,7]
[310912515,1704814352873,-500.0,0.00041671,30]
[310912516,1704814352883,-2655.79,0.00041671,30]
[310912517,1704814352893,-7119.89,0.00041671,30]
[310912518,1704814352903,-650.25,0.00041671,30]
[310912519,1704814352914,-1087.65,0.00041671,30]
[310912520,1704814352924,-500.0,0.00041671,30]
[310912521,1704814352934,-500.0,0.00041671,30]
[310912522,1704814352943,-913.65,0.00041671,30]
[310912523,1704814352953,-977.92,0.00041671,30]
[310912524,1704814352964,-2362.44,0.00041671,30]
[310912525,1704814352973,-576.88,0.00041671,30]
[310912526,1704814352982,-1112.82,0.00041671,30]
[310912527,1704814352991,-1726.68,0.00041671,30]
[310912528,1704814353001,-3996.86,0.00041671,30]
[310912529,1704814353010,-2396.9,0.00041671,30]
[310912530,1704814353020,-2486.71,0.00041671,30]
[310912531,1704814353029,-500.0,0.00041671,30]
[310912532,1704814353039,-500.0,0.00041671,30]
[310912533,1704814353048,-3045.65,0.00041671,30]
[310912534,1704814353058,-500.0,0.00041671,30]
[310912535,1704814353067,-502.99,0.00041671,30]
[310912536,1704814353076,-4277.01,0.00041671,30]
[310912537,1704814353086,-2246.6,0.00041671,30]
[310912538,1704814353096,-1448.82,0.00041671,2]
[310912539,1704814353105,-1043.39,0.00041671,30]
[310912540,1704814353114,-502.73,0.00041671,30]
[310912541,1704814353124,-534.65,0.00041671,30]
[310912542,1704814353133,-891.36,0.00041671,30]
[310912543,1704814353142,-500.0,0.00041671,30]
[310912544,1704814353152,-1353.62,0.00041671,30]
[310912545,1704814353162,-1838.21,0.00041671,30]
[310912546,1704814353172,-2632.89,0.00041671,30]
[310912547,1704814353182,-1576.53,0.00041671,30]
[310912548,1704814353193,-1105.49,0.00041671,30]
[310912549,1704814353203,-862.54,0.00041671,30]
[310912550,1704814353214,-1537.91,0.00041671,30]
[310912551,1704814353224,-500.0,0.00041671,30]
[310912552,1704814353234,-678.18,0.00041671,30]
[310912553,1704814353244,-500.0,0.00041671,30]
[310912554,1704814353254,-500.0,0.00041671,30]
[310912555,1704814353264,-4265.52,0.00041671,30]
[310912556,1704814353274,-1574.3,0.00041671,30]
[310912557,1704814353283,-3580.78,0.00041671,30]
[310912558,1704814353293,-726.93,0.00041671,30]
[310912559,1704814353304,-10916.38,0.00041671,30]
[310912560,1704814353314,-500.0,0.00041671,30]
[310912561,1704814353323,-1982.37,0.00041671,30]
[310912562,1704814353333,-170.80284271,0.00041671,30]
[310912563,1704814353343,-1469.95,0.00041671,30]
[310912564,1704814353359,-2986.22,0.00041671,30]
[310912565,1704814353370,-1699.32,0.00041671,30]
[310912566,1704814353380,-3068.15,0.00041671,30]
[310912567,1704814353391,-686.48,0.00041671,30]
[310912568,1704814353402,-1390.68,0.00041671,30]
[310912569,1704814353414,-10247.09,0.00041671,30]
[310912570,1704814353426,-1223.53,0.00041671,30]
[310912571,1704814353436,-1685.22,0.00041671,30]
[310912572,1704814353446,-500.0,0.00041671,30]
[310912573,1704814353455,-500.0,0.00041671,30]
[310912574,1704814353465,-500.0,0.00041671,30]
[310912575,1704814353475,-500.0,0.00041671,30]
[310912576,1704814353486,-500.0,0.00041671,30]
[310912577,1704814353498,-1149.96,0.00041671,30]
[310912578,1704814353509,-6253.79,0.00041671,30]
[310912579,1704814353520,-500.0,0.00041671,30]
[310912580,1704814353530,-989.82,0.00041671,30]
[310912581,1704814353541,-500.0,0.00041671,30]
[310912582,1704814353551,-2365.66,0.00041671,30]
[310912583,1704814353562,-1963.83,0.00041671,30]
[310912584,1704814353573,-701.0,0.00041671,30]
[310912585,1704814353583,-705.46,0.00041671,30]
[310912586,1704814353594,-7334.72,0.00041671,30]
[310912587,1704814353608,-500.0,0.00041671,30]
[310912588,1704814353618,-2159.55,0.00041671,30]
[310912589,1704814353628,-7759.7,0.00041671,30]
[310912590,1704814353638,-7619.16,0.00041671,30]
[310912591,1704814353647,-1725.58,0.00041671,30]
[310912592,1704814353656,-1264.61,0.00041671,30]
[310912593,1704814353666,-2266.7,0.00041671,30]
[310912594,1704814353676,-500.0,0.00041671,30]
[310912595,1704814353686,-914.32,0.00041671,30]
[310912596,1704814353696,-500.0,0.00041671,30]
[310912597,1704814353706,-689.51,0.00041671,30]
[310912598,1704814353716,-500.0,0.00041671,30]
[310912599,1704814353726,-6777.19,0.00041671,30]
[310912600,1704814353736,-1573.82,0.00041671,30]
[310912601,1704814353745,-500.0,0.00041671,30]
[310912602,1704814353755,-4036.91,0.00041671,30]
[310912603,1704814353765,-3417.76,0.00041671,30]
[310912604,1704814353775,-2670.87,0.00041671,30]
[310912605,1704814353784,-649.74,0.00041671,30]
[310912606,1704814353794,-1768.69,0.00041671,30]
[310912607,1704814353804,-2656.66,0.00041671,30]
[310912608,1704814353815,-500.0,0.00041671,30]
[310912609,1704814353828,-3624.89,0.00041671,30]
[310912610,1704814353838,-500.0,0.00041671,30]
[310912611,1704814353850,-891.81,0.00041671,30]
[310912612,1704814353859,-1969.21,0.00041671,30]
[310912613,1704814353869,-4760.81,0.00041671,30]
[310912614,1704814353879,-1849.48,0.00041671,30]
[310912615,1704814353888,-2591.36,0.00041671,30]
[310912616,1704814353898,-1829.62,0.00041671,30]
[310912617,1704814353908,-507.02,0.00041671,30]
[310912618,1704814353918,-1545.72,0.00041671,30]
[310912619,1704814353927,-820.1,0.00041671,30]
[310912620,1704814353937,-1282.15,0.00041671,30]
[310912621,1704814353946,-3330.89,0.00041671,30]
[310912622,1704814353955,-7125.45,0.00041671,30]
[310912623,1704814353965,-1041.48,0.00041671,30]
[310912624,1704814353974,-500.0,0.00041671,30]
[310912625,1704814353985,-500.0,0.00041671,30]
[310912626,1704814353995,-4552.78,0.00041671,30]
[310912627,1704814354005,-25135.11,0.00041671,30]
[310912628,1704814354014,-18448.99,0.00041671,30]
[310912629,1704814354023,-3134.7,0.00041671,30]
[310912630,1704814354033,-2000.28,0.00041671,30]
[310912631,1704814354043,-500.0,0.00041671,30]
[310912632,1704814354052,-500.0,0.00041671,30]
[310912633,1704814354062,-500.0,0.00041671,30]
[310912634,1704814354071,-745.36,0.00041671,30]
[310912635,1704814354081,-13835.28,0.00041671,30]
[310912636,1704814354090,-1655.6,0.00041671,30]
[310912637,1704814354102,-1353.98,0.00041671,30]
[310912638,1704814354111,-2446.36,0.00041671,30]
[310912639,1704814354121,-19704.83,0.00041671,30]
[310912640,1704814354130,-3526.58,0.00041671,30]
[310912641,1704814354140,-11755.41,0.00041671,30]
[310912642,1704814354150,-2085.11,0.00041671,30]
[310912643,1704814354159,-975.77,0.00041671,30]
[310912644,1704814354170,-500.0,0.00041671,7]
[310912645,1704814354179,-5456.33,0.00041671,30]
[310912646,1704814354189,-703.77,0.00041671,30]
[310912647,1704814354198,-218.76537911,0.00041671,30]
[310912648,1704814354208,-578.03,0.00041671,30]
[310912649,1704814354218,-18929.09,0.00041671,30]
[310912650,1704814354228,-91700.44,0.00041671,30]
[310912651,1704814354238,-500.0,0.00041671,30]
[310912652,1704814354247,-500.0,0.00041671,30]
[310912653,1704814354257,-610.44,0.00041671,30]
[310912654,1704814354266,-11389.4,0.00041671,30]
[310912655,1704814354276,-685.04,0.00041671,30]
[310912656,1704814354285,-4955.76,0.00041671,30]
[310912657,1704814354295,-5644.78,0.00041671,30]
[310912658,1704814354304,-1643.59,0.00041671,30]
[310912659,1704814354314,-1534.89,0.00041671,30]
[310912660,1704814354324,-1919.34,0.00041671,30]
[310912661,1704814354334,-500.0,0.00041671,30]
[310912662,1704814354343,-1207.82,0.00041671,30]
[310912663,1704814354353,-3051.16,0.00041671,30]
[310912664,1704814354362,-2205.97,0.00041671,30]
[310912665,1704814354372,-500.0,0.00041671,30]
[310912666,1704814354381,-500.0,0.00041671,30]
[310912667,1704814354391,-633.79155091,0.00041671,30]
[310912668,1704814354400,-4326.12,0.00041671,30]
[310912669,1704814354410,-23372.75,0.00041671,30]
[310912670,1704814354419,-4650.3,0.00041671,30]
[310912671,1704814354429,-3602.98,0.00041671,30]
[310912672,1704814354439,-500.0,0.00041671,30]
[310912673,1704814354448,-500.0,0.00041671,30]
[310912674,1704814354458,-1706.69,0.00041671,30]
[310912675,1704814354467,-948.23,0.00041671,30]
[310912676,1704814354476,-1484.9,0.00041671,30]
[310912677,1704814354485,-625.91,0.00041671,30]
[310912678,1704814354494,-4750.61,0.00041671,30]
[310912679,1704814354504,-677.56,0.00041671,30]
[310912680,1704814354513,-753.01,0.00041671,30]
[310912681,1704814354522,-570.53,0.00041671,30]
[310912682,1704814354532,-1014.72,0.00041671,30]
[310912683,1704814354541,-1075.83,0.00041671,30]
[310912684,1704814354551,-10401.23,0.00041671,30]
[310912685,1704814354560,-500.0,0.00041671,30]
[310912686,1704814354570,-1988.56,0.00041671,30]
[310912687,1704814354579,-2247.55,0.00041671,30]
[310912688,1704814354589,-1760.09,0.00041671,30]
[310912689,1704814354598,-1917.59,0.00041671,30]
[310912690,1704814354607,-8509.95,0.00041671,30]
[310912691,1704814354617,-6630.63,0.00041671,30]
[310912692,1704814354626,-6677.97,0.00041671,30]
[310912693,1704814354635,-912.61,0.00041671,30]
[310912694,1704814354645,-500.0,0.00041671,30]
[310912695,1704814354653,-7738.46,0.00041671,30]
[310912696,1704814354662,-500.0,0.00041671,30]
[310912697,1704814354672,-500.0,0.00041671,30]
[310912698,1704814354681,-14437.73,0.00041671,30]
[310912699,1704814354690,-839.67,0.00041671,30]
[310912700,1704814354700,-1402.57,0.00041671,30]
[310912701,1704814354709,-814.2,0.00041671,30]
[310912702,1704814354718,-2196.22,0.00041671,30]
[310912703,1704814354728,-500.0,0.00041671,30]
[310912704,1704814354737,-36009.51,0.00041671,30]
[310912705,1704814354746,-2863.88,0.00041671,30]
[310912706,1704814354756,-12556.6,0.00041671,30]
[310912707,1704814354765,-3304.26,0.00041671,30]
[310912708,1704814354775,-2592.03,0.00041671,30]
[310912709,1704814354785,-2705.09,0.00041671,30]
[310912710,1704814354794,-500.0,0.00041671,30]
[310912711,1704814354803,-500.0,0.00041671,30]
[310912712,1704814354817,-500.0,0.00041671,30]
[310912713,1704814354827,-2751.1,0.00041671,30]
[310912714,1704814354837,-2400.96,0.00041671,30]
[310912715,1704814354848,-4406.91,0.00041671,30]
[310912716,1704814354857,-1297.88,0.00041671,30]
[310912717,1704814354867,-6577.65,0.00041671,30]
[310912718,1704814354877,-571.22,0.00041671,30]
[310912719,1704814354886,-500.0,0.00041671,30]
[310912720,1704814354896,-3403.92,0.00041671,30]
[310912721,1704814354906,-3033.25,0.00041671,30]
[310912722,1704814354915,-952.63,0.00041671,30]
[310912723,1704814354924,-1721.02,0.00041671,30]
[310912724,1704814354934,-7028.61,0.00041671,30]
[310912725,1704814354943,-836.3,0.00041671,7]
[310912726,1704814354953,-500.0,0.00041671,30]
[310912727,1704814354963,-5593.4,0.00041671,30]
[310912728,1704814354973,-2579.3,0.00041671,30]
[310912729,1704814354982,-631.18,0.00041671,30]
[310912730,1704814354992,-831.97,0.00041671,30]
[310912731,1704814355001,-520.31970932,0.00041671,30]
[310912732,1704814355012,-30439.38,0.00041671,30]
[310912733,1704814355022,-500.0,0.00041671,30]
[310912734,1704814355032,-3381.6,0.00041671,30]
[310912735,1704814355041,-2158.92,0.00041671,30]
[310912736,1704814355052,-384.7452488,0.00041671,30]
[310912737,1704814355061,-3472.05,0.00041671,30]
[310912738,1704814355071,-3977.49,0.00041671,30]
[310912739,1704814355081,-3410.32,0.00041671,30]
[310912740,1704814355091,-500.0,0.00041671,30]
[310912741,1704814355102,-3128.49,0.00041671,30]
[310912742,1704814355112,-10635.21,0.00041671,30]
[310912743,1704814355122,-663.76,0.00041671,30]
[310912744,1704814355132,-24039.48,0.00041671,30]
[310912745,1704814355143,-500.0,0.00041671,30]
[310912746,1704814355153,-504.92821781,0.00041671,30]
[310912747,1704814355164,-2042.98,0.00041671,30]
[310912748,1704814355174,-3985.89,0.00041671,30]
[310912749,1704814355184,-963.6,0.00041671,30]
[310912750,1704814355193,-666.14,0.00041671,30]
[310912751,1704814355204,-556.97,0.00041671,30]
[310912752,1704814355215,-8775.01,0.00041671,30]
[310912753,1704814355225,-1309.81,0.00041671,30]
[310912754,1704814355235,-500.0,0.00041671,30]
[310912755,1704814355246,-2400.49,0.00041671,30]
[310912756,1704814355256,-566.11,0.00041671,30]
[310912757,1704814355266,-4562.41,0.00041671,30]
[310912758,1704814355275,-12849.89,0.00041671,30]
[310912759,1704814355286,-2978.02,0.00041671,30]
[310912760,1704814355296,-4825.39,0.00041671,30]
[310912761,1704814355306,-500.0,0.00041671,30]
[310912762,1704814355317,-2107.23,0.00041671,30]
[310912763,1704814355327,-1467.66,0.00041671,30]
[310912764,1704814355338,-500.0,0.00041671,30]
[310912765,1704814355350,-1188.47,0.00041671,30]
[310912766,1704814355360,-11369.64,0.00041671,30]
[310912767,1704814355370,-211.58628521,0.00041671,7]
[310912768,1704814355381,-2592.28,0.00041671,30]
[310912769,1704814355391,-566.95,0.00041671,30]
[310912770,1704814355402,-520.31,0.00041671,30]
[310912771,1704814355412,-500.0,0.00041671,30]
[310912772,1704814355423,-13217.82,0.00041671,30]
[310912773,1704814355433,-866.47,0.00041671,30]
[310912774,1704814355443,-505.23202004,0.00041671,30]
[310912775,1704814355453,-3181.95,0.00041671,30]
[310912776,1704814355464,-1308.82,0.00041671,30]
[310912777,1704814355474,-1243.26,0.00041671,30]
[310912778,1704814355484,-3734.08,0.00041671,30]
[310912779,1704814355494,-500.0,0.00041671,30]
[310912780,1704814355504,-1766.64,0.00041671,30]
[310912781,1704814355515,-3615.8,0.00041671,30]
[310912782,1704814355525,-500.0,0.00041671,30]
[310912783,1704814355535,-500.0,0.00041671,30]
[310912784,1704814355545,-799.0,0.00041671,30]
[310912785,1704814355556,-500.0,0.00041671,30]
[310912786,1704814355566,-500.0,0.00041671,30]
[310912787,1704814355576,-53505.47,0.00041671,30]
[310912788,1704814355587,-1413.08,0.00041671,30]
[310912789,1704814355598,-11287.22,0.00041671,30]
[310912790,1704814355608,-1155.76,0.00041671,30]
[310912791,1704814355619,-3747.83,0.00041671,30]
[310912792,1704814355629,-1079.77,0.00041671,30]
[310912793,1704814355639,-1909.74,0.00041671,30]
[310912794,1704814355649,-3376.04,0.00041671,30]
[310912795,1704814355660,-500.0,0.00041671,30]
[310912796,1704814355671,-500.0,0.00041671,30]
[310912797,1704814355681,-1333.09,0.00041671,30]
[310912798,1704814355691,-500.0,0.00041671,30]
[310912799,1704814355702,-9749.45,0.00041671,30]
[310912800,1704814355712,-539.77,0.00041671,30]
[310912801,1704814355722,-2218.8,0.00041671,30]
[310912802,1704814355732,-1480.74,0.00041671,30]
[310912803,1704814355743,-7804.99,0.00041671,30]
[310912804,1704814355753,-1670.61,0.00041671,30]
[310912805,1704814355763,-1352.73,0.00041671,30]
[310912806,1704814355774,-4741.82,0.00041671,30]
[310912807,1704814355785,-1839.15,0.00041671,30]
[310912808,1704814355796,-866.78,0.00041671,30]
[310912809,1704814355806,-744.76,0.00041671,30]
[310912810,1704814355821,-1274.54,0.00041671,30]
[310912811,1704814355831,-1070.69,0.00041671,30]
[310912812,1704814355841,-2037.9,0.00041671,30]
[310912813,1704814355852,-500.0,0.00041671,30]
[310912814,1704814355862,-6743.41,0.00041671,30]
[310912815,1704814355873,-1978.49,0.00041671,30]
[310912816,1704814355883,-6850.2,0.00041671,30]
[310912817,1704814355893,-621.39,0.00041671,30]
[310912818,1704814355903,-500.0,0.00041671,30]
[310912819,1704814355913,-3055.23,0.00041671,30]
[310912820,1704814355923,-2655.54,0.00041671,30]
[310912821,1704814355934,-764.5,0.00041671,30]
[310912822,1704814355945,-8868.04,0.00041671,30]
[310912823,1704814355955,-770.69,0.00041671,30]
[310912824,1704814355966,-4116.15,0.00041671,30]
[310912825,1704814355977,-6036.32,0.00041671,30]
[310912826,1704814355988,-3806.3,0.00041671,30]
[310912827,1704814355998,-5775.13,0.00041671,30]
[310912828,1704814356009,-1289.28,0.00041671,30]
[310912829,1704814356020,-500.0,0.00041671,30]
[310912830,1704814356030,-6309.52,0.00041671,30]
[310912831,1704814356041,-845.03,0.00041671,30]
[310912832,1704814356052,-1090.32,0.00041671,30]
[310912833,1704814356062,-5575.14,0.00041671,30]
[310912834,1704814356072,-3727.78,0.00041671,30]
[310912835,1704814356082,-901.26,0.00041671,30]
[310912836,1704814356092,-10643.6,0.00041671,30]
[310912837,1704814356104,-529.51,0.00041671,30]
[310912838,1704814356114,-500.0,0.00041671,30]
[310912839,1704814356125,-4214.2,0.00041671,30]
[310912840,1704814356135,-500.0,0.00041671,30]
[310912841,1704814356146,-3567.97,0.00041671,30]
[310912842,1704814356157,-500.0,0.00041671,30]
[310912843,1704814356167,-2289.51,0.00041671,30]
[310912844,1704814356177,-4952.19,0.00041671,30]
[310912845,1704814356188,-4092.41,0.00041671,30]
[310912846,1704814356198,-546.11,0.00041671,30]
[310912847,1704814356208,-25536.63,0.00041671,30]
[310912848,1704814356218,-1000.5,0.00041671,30]
[310912849,1704814356229,-2584.46,0.00041671,30]
[310912850,1704814356240,-500.0,0.00041671,30]
[310912851,1704814356250,-6469.48,0.00041671,30]
[310912852,1704814356261,-1883.51,0.00041671,30]
[310912853,1704814356272,-14086.33,0.00041671,30]
[310912854,1704814356282,-17610.03,0.00041671,30]
[310912855,1704814356292,-2218.2,0.00041671,30]
[310912856,1704814356303,-1520.43,0.00041671,30]
[310912857,1704814356314,-2301.6,0.00041671,30]
[310912858,1704814356324,-3584.84,0.00041671,30]
[310912859,1704814356335,-12370.47,0.00041671,30]
[310912860,1704814356345,-82269.16,0.00041671,30]
[310912861,1704814356358,-587.12,0.00041671,30]
[310912862,1704814356369,-500.0,0.00041671,30]
[310912863,1704814356380,-2651.08,0.00041671,30]
[310912864,1704814356392,-811.16,0.00041671,30]
[310912865,1704814356403,-500.0,0.00041671,30]
[310912866,1704814356415,-8660.7,0.00041671,30]
[310912867,1704814356426,-500.0,0.00041671,30]
[310912868,1704814356436,-500.0,0.00041671,30]
[310912869,1704814356447,-7898.64,0.00041671,30]
[310912870,1704814356458,-1178.68,0.00041671,30]
[310912871,1704814356469,-6405.08,0.00041671,30]
[310912872,1704814356480,-6245.69,0.00041671,30]
[310912873,1704814356490,-3770.14,0.00041671,30]
[310912874,1704814356501,-500.0,0.00041671,30]
[310912875,1704814356512,-1235.98,0.00041671,30]
[310912876,1704814356523,-2108.08,0.00041671,30]
[310912877,1704814356533,-1033.39,0.00041671,30]
[310912878,1704814356544,-4003.81,0.00041671,30]
[310912879,1704814356554,-3248.4,0.00041671,30]
[310912880,1704814356565,-500.0,0.00041671,30]
[310912881,1704814356575,-500.0,0.00041671,30]
[310912882,1704814356586,-923.06,0.00041671,30]
[310912883,1704814356597,-500.0,0.00041671,30]
[310912884,1704814356609,-1028.56,0.00041671,30]
[310912885,1704814356619,-818.97,0.00041671,30]
[310912886,1704814356629,-3938.01,0.00041671,30]
[310912887,1704814356640,-340.97025448,0.00041671,30]
[310912888,1704814356651,-500.0,0.00041671,30]
[310912889,1704814356661,-936.13,0.00041671,30]
[310912890,1704814356671,-5593.35,0.00041671,30]
[310912891,1704814356682,-500.0,0.00041671,30]
[310912892,1704814356691,-500.0,0.00041671,30]
[310912893,1704814356701,-1000.0,0.00041671,30]
[310912894,1704814356711,-500.0,0.00041671,30]
[310912895,1704814356721,-852.7,0.00041671,30]
[310912896,1704814356731,-756.79,0.00041671,30]
[310912897,1704814356741,-500.0,0.00041671,30]
[310912898,1704814356751,-500.0,0.00041671,30]
[310912899,1704814356761,-2774.75,0.00041671,30]
[310912900,1704814356771,-2933.0,0.0004169,3]
[310912901,1704814356782,-666.66666,0.00041698,8]
[310912902,1704814356792,-8750.0,0.0004175,2]
[310912903,1704814356801,-8750.0,0.0004175,2]
[310912904,1704814356811,-1349.16,0.00041753,30]
[310912905,1704814356823,-500.0,0.00041753,30]
[310912906,1704814356832,-1655.21,0.00041753,30]
[310912907,1704814356842,-717.53,0.00041753,30]
[310912908,1704814356853,-684.27,0.00041753,30]
[310912909,1704814356863,-501.75757734,0.00041753,30]
[310912910,1704814356873,-500.0,0.00041753,30]
[310912911,1704814356884,-500.0,0.00041753,30]
[310912912,1704814356893,-225.681882,0.00041753,30]
[310912913,1704814356903,-878.82,0.00041753,30]
[310912914,1704814356914,-500.0,0.00041753,30]
[310912915,1704814356923,-500.0,0.00041753,30]
[310912916,1704814356933,-505.38,0.00041753,30]
[310912917,1704814356943,-1062.3,0.00041753,30]
[310912918,1704814356953,-500.0,0.00041753,30]
[310912919,1704814356963,-500.0,0.00041753,30]
[310912920,1704814356973,-701.66,0.00041753,30]
[310912921,1704814356983,-1067.49,0.00041753,30]
[310912922,1704814356993,-500.0,0.00041753,30]
[310912923,1704814357003,-500.0,0.00041753,30]
[310912924,1704814357318,-565.87,0.00041753,30]
[310912925,1704814357329,-500.0,0.00041753,30]
[310912926,1704814357339,-500.0,0.00041753,30]
[310912927,1704814357350,-500.0,0.00041753,30]
[310912928,1704814357360,-707.34,0.00041753,30]
[310912929,1704814357370,-676.09,0.00041753,30]
[310912930,1704814357380,-1000.0,0.00041753,30]
[310912931,1704814357390,-581.02,0.00041753,30]